fUST/lending_fUST_20250504
["ID","MTS","AMOUNT","RATE_DAILY","PERIOD"]
[359753310,1746299455872,-400.0,0.00038356,2]
[359753311,1746299455882,-400.0,0.00038356,2]
[359753312,1746299455892,-400.0,0.00038356,2]
[359753313,1746299455902,-400.0,0.00038356,2]
[359753314,1746299455912,-342.53014559,0.00038356,2]
[359753315,1746299455922,-151.0,0.00038356,37]
[359753316,1746299455932,-151.0,0.00038356,2]
[359753317,1746299455942,-157.63,0.00038356,2]
[359753318,1746299455951,-200.0,0.00038356,5]
[359753319,1746299455962,-1500.0,0.00038356,5]
[359753320,1746299455971,-742.83485995,0.00038362,120]
[359753321,1746299455980,-2768.26901779,0.00038362,120]
[359753322,1746299455990,-200.0,0.00038362,120]
[359753323,1746299455999,-151.0,0.00038411,2]
[359753324,1746299456010,-4460.46664642,0.00038452,38]
[359753325,1746299456020,-151.0,0.00038466,2]
[359753326,1746299456030,-680.51,0.00038474,120]
[359753327,1746299456040,-204.61420705,0.00038521,2]
[359753328,1746299456060,-152.38092783,0.00038546,120]
[359753329,1746299456069,-53529.8,0.000386,30]
[359753330,1746299456176,-10485.28148273,0.000386,30]
[359753331,1746299456186,-680.51,0.00038624,120]
[359753332,1746299456196,-1564.32669932,0.0003866,15]
[359753333,1746299456205,-48178.65034336,0.0003868,15]
[359753334,1746299456215,-71588.08,0.00038771,11]
[359753335,1746299456224,-220.14,0.00038771,11]
[359753336,1746299456234,-680.51,0.00038774,120]
[359753337,1746299456244,-194.11795094,0.00038795,7]
[359753338,1746299456253,-304.0,0.0003883,50]
[359753339,1746299456263,-10000.0,0.0003887,2]
[359753340,1746299456273,-200.0,0.000389,120]
[359753341,1746299456282,-208.44516,0.000389,120]
[359753342,1746299456292,-200.0,0.00038914,120]
[359753343,1746299456303,-680.51,0.00038924,120]
[359753344,1746299456315,-152.38092783,0.0003893,120]
[359753345,1746299456325,-1500.0,0.00038933,2]
[359753346,1746299456335,-3314.6845057,0.00039,7]
[359753347,1746299456345,-1394.67244838,0.00039,120]
[359753348,1746299456355,-3000.0,0.00039,14]
[359753349,1746299456366,-268.0,0.00039,2]
[359753350,1746299456375,-268.0,0.00039,2]
[359753351,1746299456390,-268.0,0.00039,2]
[359753352,1746299456400,-200.0,0.00039033,120]
[359753353,1746299456409,-680.51,0.00039074,120]
[359753354,1746299456420,-1400.0,0.00039096,60]
[359753355,1746299456429,-1550.25,0.000391,30]
[359753356,1746299456438,-4460.46664642,0.00039176,40]
[359753357,1746299456447,-680.51,0.00039224,120]
[359753358,1746299456459,-255.14175,0.00039277,14]
[359753359,1746299456468,-513.90925,0.00039277,14]
[359753360,1746299456477,-1427.7718795,0.0003929,30]
[359753361,1746299456486,-1668.7407734,0.000393,30]
[359753362,1746299456496,-152.38092783,0.00039313,120]
[359753363,1746299456505,-690.14007311,0.00039313,120]
[359753364,1746299456515,-448.12965328,0.00039313,2]
[359753365,1746299456524,-5000.0,0.00039338,2]
[359753366,1746299456533,-1500.0,0.00039371,5]
[359753367,1746299456543,-1500.0,0.00039371,5]
[359753368,1746299456552,-503.70540492,0.00039371,5]
[359753369,1746299456561,-1507.16622796,0.00039371,5]
[359753370,1746299456571,-1012.12243933,0.00039371,5]
[359753371,1746299456580,-500.0,0.00039371,5]
[359753372,1746299456590,-505.23910651,0.00039371,5]
[359753373,1746299456600,-1500.0,0.00039371,5]
[359753374,1746299456609,-1507.14100586,0.00039371,5]
[359753375,1746299456619,-471.52244765,0.00039371,5]
[359753376,1746299456628,-1500.0,0.00039371,5]
[359753377,1746299456637,-680.51,0.00039374,120]
[359753378,1746299456646,-402.59,0.00039399,2]
[359753379,1746299456657,-402.59,0.00039399,2]
[359753380,1746299456666,-402.59,0.00039399,2]
[359753381,1746299456676,-402.59,0.00039399,2]
[359753382,1746299456685,-402.59,0.00039399,2]
[359753383,1746299456695,-402.59,0.00039399,2]
[359753384,1746299456705,-402.59,0.00039399,2]
[359753385,1746299456714,-402.59,0.00039399,2]
[359753386,1746299456724,-402.59,0.00039399,2]
[359753387,1746299456733,-402.59,0.00039399,2]
[359753388,1746299456743,-259.37843587,0.000394,60]
[359753389,1746299456752,-374030.10639332,0.00039441,20]
[359753393,1746299543333,500.0,0.00017999,2]
[359753394,1746299543375,294.36280428,0.00017999,2]
[359753395,1746299551582,500.0,0.00017999,2]
[359753396,1746299551639,198.32737017,0.00017999,2]
[359753397,1746299567083,500.0,0.00017999,2]
[359753398,1746299567124,500.0,0.00017999,2]
[359753399,1746299567161,500.0,0.00017999,2]
[359753400,1746299567196,500.0,0.00017999,2]
[359753401,1746299567231,500.0,0.00017999,2]
[359753402,1746299567266,500.0,0.00017999,2]
[359753403,1746299567301,500.0,0.00017999,2]
[359753404,1746299567339,500.0,0.00017999,2]
[359753405,1746299567374,500.0,0.00017999,2]
[359753406,1746299567593,500.0,0.00017999,2]
[359753407,1746299567628,222.35038533,0.00017999,2]
[359753408,1746299593402,593.00428508,0.00017999,2]
[359753414,1746299676597,400.0,0.00017999,2]
[359753415,1746299682651,400.0,0.00017999,2]
[359753418,1746299711924,400.0,0.00017999,2]
[359753419,1746299720395,400.0,0.00017999,2]
[359753420,1746299722837,400.0,0.00017999,2]
[359753468,1746300448332,-246.85193352,0.000189,2]
[359753469,1746300448354,-250.0,0.00019756,2]
[359753470,1746300448375,-210.24684974,0.00020995,2]
[359753471,1746300448397,-160.0,0.00021092,2]
[359753472,1746300448419,-160.0,0.00021093,2]
[359753473,1746300448443,-649.99485835,0.00021095,2]
[359753475,1746300478274,1549.40432037,0.00016,2]
[359753485,1746300526837,2311.24646394,0.00015,2]
[359753540,1746300631916,-250.0,0.000188,2]
[359753542,1746300631926,-300.0,0.00019706,2]
[359753544,1746300631936,-233.7162189,0.00020185,2]
[359753546,1746300631945,-300.0,0.00021093,2]
[359753549,1746300631955,-550.0,0.00021093,2]
[359753552,1746300631964,-300.0,0.00021093,2]
[359753555,1746300631973,-12601.56422439,0.00021094,2]
[359753558,1746300631982,-160.0,0.00021094,2]
[359753560,1746300631991,-1277.82,0.000211,2]
[359753562,1746300632001,-1944.566895,0.00021196,2]
[359753564,1746300632010,-151.0,0.00021228,2]
[359753566,1746300632019,-25929.94564986,0.00021239,2]
[359753568,1746300632031,-24070.05435014,0.00021239,2]
[359753571,1746300632049,-263.77477913,0.00021239,2]
[359753573,1746300632060,-398.67607525,0.00021239,2]
[359753575,1746300632070,-500.0,0.00021239,2]
[359753578,1746300632080,-500.0,0.00021239,2]
[359753581,1746300632089,-500.0,0.00021239,2]
[359753583,1746300632098,-500.0,0.00021239,2]
[359753585,1746300632108,-500.0,0.00021239,2]
[359753587,1746300632117,-500.0,0.00021239,2]
[359753589,1746300632127,-500.0,0.00021239,2]
[359753591,1746300632136,-442.22901751,0.00021239,2]
[359753593,1746300632146,-500.0,0.00021239,2]
[359753596,1746300632155,-500.0,0.00021239,2]
[359753599,1746300632165,-183.02067427,0.00021239,2]
[359753600,1746300632175,-500.0,0.00021239,2]
[359753602,1746300632186,-500.0,0.00021239,2]
[359753603,1746300632196,-548.03382172,0.00021239,2]
[359753605,1746300632205,-285.53692833,0.00021239,2]
[359753607,1746300632215,-211.850161,0.0002124,2]
[359753609,1746300632225,-4718.69167223,0.00021297,2]
[359753612,1746300632237,-2219.52968987,0.00021297,2]
[359753614,1746300632246,-152.0,0.00021309,2]
[359753616,1746300632256,-192.0,0.00021788,2]
[359753618,1746300632265,-500.0,0.00021918,2]
[359753620,1746300632275,-415.21153718,0.00021918,2]
[359753622,1746300632284,-500.0,0.00021918,2]
[359753624,1746300632293,-403.0,0.00021939,2]
[359753626,1746300632302,-403.0,0.00021939,2]
[359753628,1746300632312,-500.0,0.00021973,2]
[359753630,1746300632321,-500.0,0.00022,2]
[359753632,1746300632331,-500.0,0.00022,2]
[359753634,1746300632341,-500.0,0.000225,2]
[359753636,1746300632351,-500.0,0.000225,2]
[359753638,1746300632360,-191.682165,0.000225,2]
[359753640,1746300632370,-500.0,0.000225,2]
[359753642,1746300632379,-500.0,0.00022611,2]
[359753644,1746300632389,-182.16284668,0.00022878,2]
[359753646,1746300632398,-160.0,0.00022878,2]
[359753648,1746300632407,-160.0,0.00022878,2]
[359753650,1746300632416,-685.98058113,0.00022878,2]
[359753652,1746300632428,-155.4942788,0.00022878,2]
[359753654,1746300632437,-272.5659197,0.00022878,2]
[359753657,1746300632454,-149.10120278,0.00022878,2]
[359753659,1746300632463,-500.0,0.00022878,2]
[359753661,1746300632473,-157.63,0.00022885,2]
[359753663,1746300632482,-202.7484841,0.000229,8]
[359753665,1746300632492,-420.0,0.00022943,2]
[359753667,1746300632502,-500.0,0.00023152,2]
[359753669,1746300632511,-500.0,0.00023246,2]
[359753671,1746300632521,-500.0,0.00023246,2]
[359753673,1746300632531,-500.0,0.00023246,2]
[359753675,1746300632540,-500.61217257,0.00023246,2]
[359753677,1746300632549,-500.0,0.00023246,2]
[359753679,1746300632559,-500.0,0.00023246,2]
[359753681,1746300632569,-500.0,0.00023246,2]
[359753683,1746300632578,-500.0,0.00023246,2]
[359753685,1746300632587,-500.0,0.00023246,2]
[359753686,1746300632596,-500.0,0.00023246,2]
[359753688,1746300632606,-500.0,0.00023246,2]
[359753690,1746300632615,-500.0,0.00023246,2]
[359753692,1746300632625,-500.0,0.00023246,2]
[359753694,1746300632634,-430.33020921,0.00023246,2]
[359753695,1746300632643,-509.96264343,0.00023338,2]
[359753696,1746300632653,-500.0,0.00023355,2]
[359753698,1746300632662,-500.0,0.00023355,2]
[359753700,1746300632671,-426.68475897,0.00023355,2]
[359753702,1746300632683,-500.0,0.00023355,2]
[359753704,1746300632695,-500.0,0.00023426,2]
[359753705,1746300632704,-500.0,0.000237,2]
[359753707,1746300632714,-202.74848392,0.0002371,9]
[359753709,1746300632724,-246.85193352,0.000239,2]
[359753710,1746300632733,-500.0,0.00024156,2]
[359753712,1746300632743,-15.82817657,0.00024519,11]
[359753781,1746300637840,-186.92030735,0.00024519,11]
[359753782,1746300637850,-1649.76775649,0.00024839,2]
[359753783,1746300637859,-16721.82095604,0.000249,2]
[359753784,1746300637871,-912.24648186,0.000249,2]
[359753785,1746300637883,-814.33509922,0.000249,2]
[359753786,1746300637894,-653.96976556,0.000249,2]
[359753787,1746300637961,-186.34373795,0.000249,2]
[359753788,1746300637973,-5057.96693628,0.000249,2]
[359753789,1746300637984,-14033.75233891,0.000249,2]
[359754014,1746300640149,-2382.47027819,0.000249,2]
[359754021,1746300640205,-2129.99278796,0.000249,2]
[359754027,1746300640259,-2529.37251103,0.000249,2]
[359754289,1746300642853,-39848.55650211,0.000249,2]
[359754297,1746300642909,-452.99413721,0.000249,2]
[359754299,1746300642921,-504.68148946,0.000249,2]
[359754313,1746300643046,-5117.36044863,0.000249,2]
[359754315,1746300643057,-587.8,0.000249,2]
[359754317,1746300643069,-11269.33563388,0.000249,2]
[359754320,1746300643081,-253.74189733,0.000249,2]
[359754605,1746300645857,-117247.58431138,0.000249,2]
[359754607,1746300645867,-336.644,0.00024939,2]
[359754609,1746300645876,-403.0,0.00024939,2]
[359754612,1746300645886,-587.0,0.00024954,2]
[359754614,1746300645897,-500.0,0.00025029,2]
[359754616,1746300645907,-1944.56689498,0.00025104,2]
[359754618,1746300645916,-202.74848392,0.00025329,12]
[359754620,1746300645926,-1657.79321148,0.00026,30]
[359754622,1746300645935,-202.74848392,0.00026138,14]
[359754624,1746300645944,-348.18323385,0.00026883,2]
[359754626,1746300645954,-169.8954447,0.00026883,2]
[359754628,1746300645963,-202.74848392,0.00026948,16]
[359754630,1746300645972,-313.6679601,0.00027,3]
[359754632,1746300645981,-313.6679601,0.00027,3]
[359754634,1746300645991,-424.0,0.00027142,2]
[359754636,1746300646000,-505.27162124,0.00027397,14]
[359754638,1746300646010,-1500.0,0.00027397,2]
[359754640,1746300646019,-153.0,0.00027397,3]
[359754664,1746300646190,-500.0,0.00027397,5]
[359754666,1746300646200,-160.81507331,0.00027633,5]
[359754668,1746300646210,-209.33810453,0.00027633,5]
[359754670,1746300646220,-587.42499218,0.00027633,5]
[359754672,1746300646229,-500.0,0.00027633,5]
[359754674,1746300646239,-202.74848392,0.00027757,17]
[359754676,1746300646248,-403.0,0.00027939,2]
[359754678,1746300646258,-1000.0,0.00027979,5]
[359754680,1746300646268,-1000.0,0.00027979,5]
[359754682,1746300646277,-1000.0,0.00028726,5]
[359754684,1746300646287,-1000.0,0.00028726,5]
[359754686,1746300646297,-867.58157961,0.00028726,5]
[359754689,1746300646309,-132.41842039,0.00028726,5]
[359754691,1746300646319,-1000.0,0.00028726,2]
[359754692,1746300646329,-1000.0,0.00028726,5]
[359754694,1746300646338,-1000.0,0.00028834,2]
[359754696,1746300646348,-1000.0,0.00028834,5]
[359754698,1746300646358,-1944.56689498,0.00029012,2]
[359754700,1746300646368,-127.48812318,0.00029376,20]
[359754703,1746300646384,-75.26036074,0.00029376,20]
[359754705,1746300646393,-479.99963926,0.00029982,4]
[359754707,1746300646405,-1520.00036074,0.00029982,4]
[359754709,1746300646416,-269.0,0.0003,2]
[359754711,1746300646425,-202.74848392,0.00030186,22]
[359754713,1746300646435,-1000.0,0.00030508,5]
[359754715,1746300646444,-403.0,0.00030939,2]
[359754717,1746300646454,-202.74848392,0.00030995,24]
[359754719,1746300646463,-202.74848392,0.00031805,25]
[359754721,1746300646472,-211.850161,0.0003186,2]
[359754723,1746300646482,-1700.23724845,0.00032,30]
[359754725,1746300646494,-1054.54,0.00032,30]
[359754728,1746300646505,-290.30806392,0.00032,30]
[359755130,1746301831902,-300.0,0.00018099,2]
[359755131,1746301831912,-214.94436304,0.00018099,2]
[359755136,1746301831955,-985.05563696,0.00018099,2]
[359755138,1746301831965,-300.0,0.00018099,2]
[359755139,1746301831975,-11.94436304,0.000181,2]
[359755170,1746301837954,-11673.60563596,0.000181,2]
[359755171,1746301837963,-563.8234754,0.00018399,2]
[359755172,1746301837973,-166.73,0.00018498,2]
[359755173,1746301837982,-500.0,0.00018499,2]
[359755174,1746301837991,-303.56227996,0.00018499,2]
[359755175,1746301838001,-500.0,0.00018499,2]
[359755176,1746301838011,-500.0,0.00018499,2]
[359755177,1746301838020,-500.0,0.00018499,2]
[359755178,1746301838029,-500.0,0.00018499,2]
[359755179,1746301838038,-588.08626701,0.00018499,2]
[359755180,1746301838048,-500.0,0.00018499,2]
[359755181,1746301838057,-500.0,0.00018499,2]
[359755182,1746301838067,-506.48008062,0.00018499,2]
[359755184,1746301838076,-500.0,0.00018499,2]
[359755186,1746301838085,-500.0,0.00018499,2]
[359755188,1746301838094,-500.0,0.00018499,2]
[359755189,1746301838104,-500.0,0.00018499,2]
[359755190,1746301838117,-500.0,0.00018499,2]
[359755191,1746301838126,-500.0,0.00018499,2]
[359755192,1746301838135,-500.0,0.00018499,2]
[359755193,1746301838149,-500.0,0.00018499,2]
[359755194,1746301838158,-500.0,0.00018499,2]
[359755195,1746301838167,-500.0,0.00018499,2]
[359755196,1746301838176,-500.0,0.00018499,2]
[359755197,1746301838186,-500.0,0.00018499,2]
[359755198,1746301838195,-500.0,0.00018499,2]
[359755199,1746301838204,-281.88223642,0.00018499,2]
[359755200,1746301838215,-500.0,0.00018499,2]
[359755201,1746301838225,-500.0,0.00018499,2]
[359755202,1746301838234,-500.0,0.00018499,2]
[359755203,1746301838243,-500.0,0.00018499,2]
[359755204,1746301838254,-359.62896723,0.00018499,2]
[359755260,1746301840346,-140.37103277,0.00018499,2]
[359755262,1746301840356,-500.0,0.00018499,2]
[359755264,1746301840366,-500.0,0.00018499,2]
[359755266,1746301840375,-500.0,0.00018499,2]
[359755268,1746301840385,-500.0,0.00018499,2]
[359755270,1746301840394,-500.0,0.00018499,2]
[359755272,1746301840403,-500.0,0.00018499,2]
[359755274,1746301840412,-500.0,0.00018499,2]
[359755276,1746301840422,-500.0,0.00018499,2]
[359755278,1746301840431,-500.0,0.00018499,2]
[359755280,1746301840441,-500.0,0.00018499,2]
[359755283,1746301840450,-340.69961728,0.00018499,2]
[359755565,1746301843205,-159.30038272,0.00018499,2]
[359755568,1746301843215,-500.0,0.00018499,2]
[359755570,1746301843224,-500.00000001,0.00018499,2]
[359755572,1746301843234,-248.96045962,0.00018499,2]
[359755574,1746301843243,-57649.28582084,0.000185,2]
[359755576,1746301843253,-1474.88482076,0.000185,2]
[359755578,1746301843264,-5373.91826005,0.000186,2]
[359755580,1746301843274,-250.0,0.000187,2]
[359755582,1746301843283,-321.72428169,0.000187,2]
[359755584,1746301843293,-464.78007492,0.00019178,2]
[359755586,1746301843302,-2411.0,0.0001961,2]
[359755588,1746301843311,-279.4705777,0.00019638,2]
[359755590,1746301843320,-420.0,0.00019746,2]
[359755592,1746301843329,-700.0,0.00019843,2]
[359755594,1746301843339,-202.74848392,0.000199,2]
[359755596,1746301843348,-1474.88482072,0.00020272,2]
[359755598,1746301843358,-295.267657,0.00020451,2]
[359755600,1746301843367,-400.0,0.0002066,2]
[359755602,1746301843377,-400.0,0.00020663,2]
[359755604,1746301843386,-400.0,0.00020663,2]
[359755606,1746301843395,-400.0,0.00020663,2]
[359755608,1746301843405,-360.44681977,0.00020663,2]
[359755610,1746301843415,-400.0,0.00020663,2]
[359755612,1746301843424,-400.0,0.00020663,2]
[359755614,1746301843433,-24900.0,0.00020663,2]
[359755616,1746301843443,-1464.0686977,0.00020664,2]
[359755618,1746301843452,-500.0,0.00020889,2]
[359755620,1746301843461,-157.64,0.00021,2]
[359755622,1746301843470,-160.0,0.00021192,2]
[359755624,1746301843479,-160.0,0.00021192,2]
[359755626,1746301843489,-841.47485993,0.00021192,2]
[359755628,1746301843498,-421.66712248,0.00021192,2]
[359755630,1746301843507,-494.40919035,0.00021192,2]
[359755913,1746301846304,-6885.58097299,0.00021192,2]
[359756203,1746301931852,539.69265016,0.00017999,2]
[359756389,1746303032048,-2644.1621418,0.00018184,2]
[359756390,1746303032058,-1307.71203822,0.00018372,2]
[359756391,1746303032067,-1502.17535924,0.00018389,2]
[359756392,1746303032076,-1200.0,0.00018395,2]
[359756393,1746303032086,-300.0,0.00018396,2]
[359756394,1746303032095,-500.0,0.00018397,2]
[359756395,1746303032104,-500.0,0.00018397,2]
[359756396,1746303032113,-500.0,0.00018397,2]
[359756397,1746303032123,-1000.0,0.00018397,2]
[359756398,1746303032132,-328.7206248,0.00018404,2]
[359756399,1746303032141,-400.0,0.00018472,2]
[359756400,1746303032150,-524.65856115,0.00018473,2]
[359756401,1746303032159,-500.0,0.00018473,2]
[359756402,1746303032169,-509.62149181,0.00018473,2]
[359756403,1746303032178,-592.182488,0.00018473,2]
[359756404,1746303032187,-500.0,0.00018473,2]
[359756405,1746303032196,-500.0,0.00018473,2]
[359756406,1746303032205,-500.0,0.00018473,2]
[359756407,1746303032215,-500.0,0.00018473,2]
[359756408,1746303032224,-500.0,0.00018473,2]
[359756409,1746303032233,-373.54494075,0.00018473,2]
[359756410,1746303032243,-500.0,0.00018473,2]
[359756411,1746303032252,-500.0,0.00018473,2]
[359756412,1746303032262,-500.0,0.00018473,2]
[359756413,1746303032271,-500.0,0.00018473,2]
[359756414,1746303032280,-15570.24872158,0.0001849,2]
[359756415,1746303032292,-19062.19127842,0.0001849,2]
[359756416,1746303032301,-400.0,0.00018497,2]
[359756417,1746303032311,-400.0,0.00018497,2]
[359756418,1746303032321,-400.0,0.00018497,2]
[359756419,1746303032330,-458.9,0.00018497,2]
[359756420,1746303032339,-400.0,0.00018497,2]
[359756421,1746303032349,-400.0,0.00018498,2]
[359756422,1746303032358,-198.903293,0.00018551,2]
[359756423,1746303032368,-400.0,0.00018746,2]
[359756424,1746303032377,-400.0,0.00018771,2]
[359756425,1746303032386,-400.0,0.00018771,2]
[359756427,1746303032396,-400.0,0.00018771,2]
[359756429,1746303032405,-458.9,0.00018771,2]
[359756431,1746303032414,-400.0,0.00018771,2]
[359756432,1746303032424,-400.0,0.00018772,2]
[359756434,1746303032433,-1085.11319232,0.000189,2]
[359756436,1746303032442,-400.0,0.0001902,2]
[359756438,1746303032452,-532.33,0.00019045,2]
[359756439,1746303032462,-400.0,0.00019045,2]
[359756440,1746303032471,-400.0,0.00019045,2]
[359756441,1746303032481,-458.9,0.00019045,2]
[359756442,1746303032490,-387.48333476,0.00019045,2]
[359756443,1746303032499,-400.0,0.00019046,2]
[359756444,1746303032509,-320.0,0.00019046,2]
[359756445,1746303032518,-1502.17535922,0.00019067,2]
[359756446,1746303032527,-157.6207,0.00019178,2]
[359756447,1746303032537,-300.0,0.00019178,2]
[359756448,1746303032549,-400.0,0.00019294,2]
[359756449,1746303032558,-400.0,0.00019319,2]
[359756450,1746303032568,-400.0,0.00019319,2]
[359756451,1746303032577,-458.9,0.00019319,2]
[359756452,1746303032587,-414.61,0.0001932,2]
[359756453,1746303032597,-282.79550645,0.00019373,2]
[359756454,1746303032606,-336.793124,0.00019558,2]
[359756455,1746303032617,-370.51,0.00019568,2]
[359756456,1746303032627,-400.0,0.00019593,2]
[359756457,1746303032636,-400.0,0.00019593,2]
[359756458,1746303032645,-458.9,0.00019593,2]
[359756459,1746303032654,-9150.13096598,0.00019616,3]
[359756460,1746303032665,-42315.27325062,0.00019617,2]
[359756461,1746303032674,-400.0,0.00019617,2]
[359756462,1746303032683,-400.0,0.00019617,2]
[359756463,1746303032692,-400.0,0.00019617,2]
[359756464,1746303032702,-400.0,0.00019617,2]
[359756465,1746303032711,-400.0,0.00019617,2]
[359756466,1746303032720,-400.0,0.00019617,2]
[359756467,1746303032730,-400.0,0.00019617,2]
[359756469,1746303032740,-177.93278267,0.00019617,2]
[359756471,1746303032749,-400.0,0.00019617,2]
[359756473,1746303032758,-440.32896513,0.00019617,2]
[359756475,1746303032767,-12152.34342002,0.00019617,2]
[359756477,1746303032783,-1374.37440975,0.00019617,2]
[359756479,1746303032794,-1279.19257051,0.00019617,2]
[359756481,1746303032806,-2592.3064933,0.00019617,2]
[359756482,1746303032817,-2750.0,0.00019617,2]
[359756483,1746303032828,-4450.0,0.00019617,2]
[359756487,1746303038191,-301.78310642,0.00019617,2]
[359756488,1746303038200,-322.4218097,0.00019673,2]
[359756804,1746303043263,-177.5781903,0.00019673,2]
[359756806,1746303043275,-500.0,0.00019673,2]
[359756809,1746303043284,-500.0,0.00019673,2]
[359756810,1746303043294,-500.76635225,0.00019673,2]
[359756812,1746303043303,-500.0,0.00019673,2]
[359756814,1746303043314,-500.0,0.00019673,2]
[359756816,1746303043324,-500.0,0.00019673,2]
[359756819,1746303043334,-500.0,0.00019673,2]
[359756821,1746303043343,-500.0,0.00019673,2]
[359756823,1746303043353,-500.0,0.00019673,2]
[359756825,1746303043362,-500.0,0.00019673,2]
[359756827,1746303043371,-500.0,0.00019673,2]
[359756828,1746303043381,-500.0,0.00019673,2]
[359756831,1746303043391,-500.0,0.00019673,2]
[359756833,1746303043400,-500.0,0.00019673,2]
[359756835,1746303043410,-500.0,0.00019673,2]
[359756836,1746303043419,-524.55896372,0.00019673,2]
[359756839,1746303043428,-500.0,0.00019673,2]
[359756841,1746303043438,-500.0,0.00019673,2]
[359756843,1746303043447,-500.0,0.00019673,2]
[359756845,1746303043456,-500.0,0.00019673,2]
[359756847,1746303043466,-500.0,0.00019673,2]
[359756849,1746303043475,-500.0,0.00019673,2]
[359756850,1746303043485,-500.0,0.00019673,2]
[359756852,1746303043495,-521.860614,0.00019673,2]
[359756854,1746303043505,-500.0,0.00019673,2]
[359756857,1746303043515,-500.0,0.00019673,2]
[359756859,1746303043525,-554.80782861,0.00019673,2]
[359756861,1746303043534,-503.01119814,0.00019673,2]
[359756863,1746303043544,-500.0,0.00019673,2]
[359756864,1746303043556,-533.54333428,0.00019673,2]
[359756867,1746303043565,-500.0,0.00019673,2]
[359756869,1746303043574,-500.0,0.00019673,2]
[359756871,1746303043583,-500.0,0.00019673,2]
[359756873,1746303043594,-500.0,0.00019673,2]
[359756874,1746303043603,-17039.04904646,0.00019673,2]
[359757208,1746303180292,262.97621,0.00017904,2]
[359757241,1746303302286,12805.4904666,0.00017482,2]
[359757256,1746303402288,2641.4377484,0.00017478,2]
[359757265,1746303443042,453.0139531,0.00017471,2]
[359757307,1746304021029,12625.90249752,0.00017984,2]
[359757315,1746304077212,2340.49435895,0.00016,2]
[359757320,1746304108204,90945.5171387,0.00017445,2]
[359757330,1746304159197,-1000.0,0.00018084,2]
[359757331,1746304159219,-1032.64800666,0.0001837,2]
[359757332,1746304159239,-250.0,0.00018372,2]
[359757333,1746304159261,-1200.0,0.00018468,2]
[359757334,1746304159282,-88.7454586,0.00018468,2]
[359757339,1746304186233,250.0,0.00017984,2]
[359757345,1746304220927,1000.0,0.00017984,2]
[359757377,1746304232157,-1066.91450803,0.0001837,2]
[359757379,1746304232167,-1382.98146714,0.0001837,2]
[359757381,1746304232177,-1200.0,0.00018467,2]
[359757383,1746304232186,-300.0,0.00018467,2]
[359757385,1746304232196,-400.0,0.00018468,2]
[359757387,1746304232205,-400.0,0.00018468,2]
[359757389,1746304232214,-400.0,0.00018468,2]
[359757391,1746304232224,-400.0,0.00018468,2]
[359757393,1746304232233,-400.0,0.00018468,2]
[359757395,1746304232242,-400.0,0.00018468,2]
[359757397,1746304232251,-400.0,0.00018469,2]
[359757399,1746304232260,-515.05,0.00018469,2]
[359757402,1746304232270,-400.0,0.00018469,2]
[359757406,1746304232281,-400.0,0.00018469,2]
[359757409,1746304232290,-400.0,0.00018469,2]
[359757411,1746304232299,-400.0,0.00018469,2]
[359757415,1746304232309,-400.0,0.00018469,2]
[359757418,1746304232319,-400.0,0.00018469,2]
[359757421,1746304232328,-400.0,0.00018469,2]